bitfinex/quotes_SOLUSD_20250718
["timestamp","ask_amount","ask_price","bid_price","bid_amount"]
[1752860549577,59.33788546,178.93,178.92,0.03]
[1752860550470,59.33788546,178.93,178.91,1e-08]
[1752860550471,42.78468397,178.92,178.91,1e-08]
[1752860550671,47.65909915,178.92,178.91,1e-08]
[1752860550875,54.73788546,178.92,178.91,1e-08]
[1752860551297,60.32697555,178.92,178.91,1e-08]
[1752860552204,42.78468397,178.91,178.9,1e-08]
[1752860552404,84.59788546,178.91,178.9,1e-08]
[1752860552600,16.78468397,178.86,178.85,0.03]
[1752860552789,23.86347028,178.86,178.85,0.03]
[1752860552994,17.48468397,178.86,178.85,0.03]
[1752860553188,24.56347028,178.86,178.85,0.03]
[1752860553507,32.95614455,178.86,178.85,0.03]
[1752860553702,25.87735824,178.86,178.85,0.03]
[1752860553911,32.95614455,178.86,178.85,0.03]
[1752860555408,25.87735824,178.86,178.85,0.03]
[1752860555978,25.17735824,178.86,178.85,0.03]
[1752860556197,25.87735824,178.86,178.85,0.03]
[1752860556405,32.95614455,178.86,178.85,0.03]
[1752860557084,37.39995981,178.86,178.85,0.03]
[1752860557287,25.87735824,178.86,178.85,0.03]
[1752860557501,32.95614455,178.86,178.85,0.03]
[1752860558007,16.78468397,178.81,178.8,0.2]
[1752860558513,17.48468397,178.81,178.8,0.2]
[1752860559115,26.0,178.84,178.8,7.77878631]
[1752860559421,48.37658689,178.83,178.81,0.5]
[1752860559621,48.37658689,178.83,178.8,0.2]
[1752860559918,48.37658689,178.83,178.81,7.07878631]
[1752860560412,16.78468397,178.83,178.82,7.07878631]
[1752860560619,22.37633319,178.84,178.82,0.5]
[1752860560815,28.80170927,178.86,178.83,7.57878631]
[1752860560816,2.80170927,178.86,178.83,7.57878631]
[1752860561017,16.78468397,178.86,178.85,7.07878631]
[1752860561606,16.78468397,178.88,178.85,7.57878631]
[1752860562115,22.37528195,178.88,178.86,7.07878631]
[1752860562442,25.20985994,178.88,178.85,7.07878631]
[1752860562601,25.90985994,178.88,178.85,7.07878631]
[1752860562918,25.90985994,178.88,178.83,0.5]
[1752860562919,25.20985994,178.88,178.83,0.5]
[1752860563108,25.20985994,178.88,178.86,7.07878631]
[1752860563617,25.20985994,178.88,178.87,7.07878631]
[1752860564018,19.61926196,178.88,178.87,7.07878631]
[1752860564894,19.61926196,178.88,178.84,0.5]
[1752860565090,25.20960185,178.88,178.84,0.5]
[1752860565308,25.20960185,178.88,178.86,7.07878631]
[1752860566002,25.89960185,178.88,178.86,7.07878631]
[1752860566222,16.78468397,178.86,178.84,7.07878631]
[1752860566426,17.47468397,178.86,178.84,7.07878631]
[1752860567733,22.37596157,178.85,178.84,7.07878631]
[1752860567918,22.37596157,178.85,178.83,7.07878631]
[1752860568427,17.47468397,178.84,178.8,0.2]
[1752860568633,17.47468397,178.84,178.82,7.07878631]
[1752860568819,17.47468397,178.84,178.81,7.07878631]
[1752860569132,16.78468397,178.82,178.8,0.2]
[1752860569614,17.47468397,178.81,178.8,0.2]
[1752860569817,23.06721235,178.81,178.8,0.2]
[1752860570722,22.37721235,178.81,178.8,0.2]
[1752860571118,16.78468397,178.81,178.8,7.27878631]
[1752860571515,16.78468397,178.87,178.8,13.37141774]
[1752860571712,16.78468397,178.87,178.86,7.07878631]
[1752860571937,5.58916493,178.92,178.86,7.57878631]
[1752860572106,5.58916493,178.92,178.91,7.07878631]
[1752860572311,5.58884553,178.93,178.91,7.07878631]
[1752860572512,5.58884553,178.93,178.92,7.07878631]
[1752860572723,2.76799677,178.95,178.92,7.07878631]
[1752860573010,5.58784085,178.96,178.92,7.07878631]
[1752860573011,5.58784085,178.96,178.94,11.54375705]
[1752860573221,5.58784085,178.96,178.92,0.5]
[1752860573418,22.37252482,178.96,178.94,11.54375705]
[1752860574075,22.37252482,178.96,178.95,11.54375705]
[1752860575059,16.78468397,178.95,178.94,11.54375705]
[1752860575556,8.43449498,178.96,178.94,11.54375705]
[1752860575731,5.58784085,178.96,178.95,11.54375705]
[1752860576255,16.78468397,178.97,178.95,11.54375705]
[1752860576442,22.37231795,178.97,178.96,11.54375705]
[1752860577143,35.9072411,178.98,178.96,11.54375705]
[1752860577346,22.37192507,178.98,178.97,11.54375705]
[1752860578143,16.78468397,178.98,178.94,0.5]
[1752860578349,16.78468397,178.98,178.92,5.58909009]
[1752860578546,0.06,178.99,178.97,11.54375705]
[1752860578751,5.64690429,178.99,178.98,11.54375705]
[1752860579444,0.06,178.99,178.98,11.54375705]
[1752860579947,5.64697077,178.99,178.95,0.5]
[1752860580139,5.64697077,178.99,178.98,11.54375705]
[1752860580858,16.78468397,178.98,178.94,11.54375705]
[1752860581048,0.69,178.97,178.94,11.54375705]
[1752860581244,16.78468397,178.96,178.94,11.54375705]
[1752860581451,17.47468397,178.96,178.94,11.54375705]
[1752860582351,5.58815311,178.95,178.94,11.54375705]
[1752860582675,16.78468397,178.94,178.87,2.1445]
[1752860582845,29.01844102,178.94,178.89,11.54375705]
[1752860583165,5.58815311,178.95,178.9,0.5]
[1752860583467,5.58815311,178.95,178.92,11.54375705]
[1752860583636,89.7,178.94,178.92,11.54375705]
[1752860584541,95.28853967,178.94,178.92,11.54375705]
[1752860584860,89.7,178.94,178.92,11.54375705]
[1752860585054,89.7,178.94,178.93,11.54375705]
[1752860585436,95.2884654,178.94,178.93,11.54375705]
[1752860586262,95.2884654,178.94,178.9,0.5]
[1752860586449,95.2884654,178.94,178.92,11.54375705]
[1752860587059,89.7,178.94,178.92,11.54375705]
[1752860587563,95.28854051,178.94,178.87,27.6445]
[1752860587781,90.39,178.93,178.92,11.54375705]
[1752860588065,90.39,178.93,178.91,11.54375705]
[1752860588269,95.97896187,178.93,178.87,33.73513279]
[1752860588577,89.7,178.92,178.91,11.54375705]
[1752860589281,89.7,178.92,178.89,0.5]
[1752860589493,89.7,178.92,178.91,11.54375705]
[1752860590252,112.07377406,178.92,178.87,27.6445]
[1752860590484,90.39,178.91,178.87,1.6445]
[1752860590779,89.7,178.91,178.87,2.1445]
[1752860591375,89.7,178.91,178.88,0.5]
[1752860591670,89.7,178.91,178.9,11.54375705]
[1752860592178,89.7,178.91,178.87,1.6445]
[1752860592582,95.9794606,178.91,178.9,11.54375705]
[1752860593447,6.2794606,178.91,178.9,11.54375705]
[1752860594063,22.37387447,178.92,178.9,11.54375705]
[1752860594477,23.06387447,178.92,178.9,11.54375705]
[1752860594985,23.06387447,178.92,178.9,7.08736229]
[1752860595375,22.37387447,178.92,178.9,7.08736229]
[1752860595948,23.03387447,178.92,178.87,2.1445]
[1752860596149,23.03387447,178.92,178.9,7.08736229]
[1752860596774,23.03387447,178.92,178.87,2.1445]
[1752860597196,23.03387447,178.92,178.9,7.08736229]
[1752860597398,0.66,178.91,178.9,7.08736229]
[1752860598199,0.66,178.91,178.89,7.08736229]
[1752860598398,106.48468397,178.9,178.87,7.08736229]
[1752860598701,0.66,178.89,178.87,7.08736229]
[1752860598905,106.48468397,178.9,178.86,7.08736229]
[1752860599083,0.66,178.88,178.86,7.08736229]
[1752860599500,0.66,178.87,178.83,0.03]
[1752860599699,0.66,178.87,178.86,7.08736229]
[1752860599890,16.78468397,178.88,178.86,7.08736229]
[1752860600093,17.44468397,178.88,178.86,7.08736229]
[1752860600283,0.66,178.87,178.85,7.08736229]
[1752860601191,16.78468397,178.88,178.83,0.03]
[1752860601395,0.66,178.86,178.84,7.08736229]
[1752860601774,6.2504373,178.88,178.85,7.08736229]
[1752860602202,89.7,178.87,178.85,7.08736229]
[1752860602904,89.7,178.87,178.86,7.08736229]
[1752860604919,89.7,178.87,178.86,7.58736229]
[1752860605087,89.7,178.87,178.86,7.08736229]
[1752860606008,89.7,178.87,178.86,13.17832729]
[1752860607724,89.7,178.93,178.86,13.17832729]
[1752860607891,89.7,178.93,178.92,7.08736229]
[1752860608309,89.7,178.93,178.89,0.5]
[1752860608518,89.7,178.93,178.92,7.08736229]
[1752860608917,0.66,178.94,178.92,7.08736229]
[1752860609307,5.58847066,178.94,178.93,7.08736229]
[1752860609508,5.58823641,178.95,178.92,7.08736229]
[1752860609910,0.66,178.94,178.92,7.08736229]
[1752860610424,0.66,178.94,178.91,7.08736229]
[1752860611218,5.58877773,178.93,178.91,7.08736229]
[1752860611727,0.66,178.92,178.91,7.08736229]
[1752860614112,90.36,178.92,178.91,7.08736229]
[1752860614429,90.36,178.92,178.87,5.59055255]
[1752860614430,95.94911375,178.92,178.87,5.59055255]
[1752860614737,0.66,178.91,178.9,7.08736229]
[1752860615227,0.66,178.91,178.89,7.08736229]
[1752860615522,0.66,178.9,178.89,7.08736229]
[1752860615729,0.66,178.9,178.85,5.59125635]
[1752860615912,0.66,178.89,178.88,7.08736229]
[1752860616509,95.28911375,178.92,178.88,7.08736229]
[1752860616728,28.70714195,178.91,178.84,26.0]
[1752860616907,28.70714195,178.91,178.83,30.95]
[1752860616908,101.62281628,178.9,178.85,7.08736229]
[1752860617113,0.66,178.89,178.86,7.08736229]
[1752860618330,0.66,178.88,178.86,7.08736229]
[1752860618533,89.7,178.87,178.86,7.08736229]
[1752860618729,89.7,178.87,178.83,5.62184249]
[1752860618946,95.95065242,178.87,178.86,7.08736229]
[1752860619261,95.95065242,178.87,178.83,0.03]
[1752860619548,90.36,178.86,178.83,0.03]
[1752860619718,16.78468397,178.85,178.83,0.03]
[1752860619919,24.53204626,178.85,178.83,0.03]
[1752860620137,0.66,178.84,178.83,0.03]
[1752860620353,24.53204626,178.84,178.83,0.03]
[1752860620537,28.70620376,178.84,178.83,0.03]
[1752860620861,27.21043171,178.84,178.83,0.03]
[1752860621058,34.297794,178.84,178.83,0.03]
[1752860621624,42.78468397,178.81,178.8,0.2]
[1752860621822,16.78468397,178.8,178.79,0.03]
[1752860622043,28.70493565,178.8,178.79,0.03]
[1752860622822,34.29777681,178.8,178.79,0.03]
[1752860623451,34.29777681,178.8,178.79,1e-08]
[1752860624047,42.78468397,178.77,178.76,1e-08]
[1752860624353,16.78468397,178.76,178.75,1e-08]
[1752860624531,21.61757336,178.76,178.75,1e-08]
[1752860624942,27.21166599,178.76,178.75,1e-08]
[1752860625156,23.0387766,178.76,178.75,1e-08]
[1752860625340,34.28761818,178.76,178.75,1e-08]
[1752860626357,30.12613889,178.76,178.75,1e-08]
[1752860626555,23.0387766,178.76,178.75,1e-08]
[1752860628559,30.12613889,178.76,178.75,1e-08]
[1752860629064,34.61395951,178.76,178.75,1e-08]
[1752860629634,23.0387766,178.76,178.75,1e-08]
[1752860629954,34.61395951,178.76,178.75,1e-08]
[1752860631847,16.78468397,178.73,178.67,2.3458]
[1752860632043,101.1751829,178.72,178.67,2.3458]
[1752860632243,107.03468396,178.71,178.67,1.6658]
[1752860632557,89.59999999,178.7,178.67,11.57518291]
[1752860632746,95.19624923,178.7,178.66,11.57518291]
[1752860633061,95.84624923,178.7,178.66,11.57518291]
[1752860633459,17.43468397,178.69,178.65,11.57518291]
[1752860633654,20.25989326,178.69,178.65,11.57518291]
[1752860633865,20.25989326,178.69,178.65,12.25518291]
[1752860634555,25.85648539,178.69,178.65,11.57518291]
[1752860634756,0.65,178.68,178.64,11.57518291]
[1752860634971,90.24999999,178.68,178.63,2.2219]
[1752860635188,29.00986688,178.67,178.61,6.3793]
[1752860635358,29.00986688,178.67,178.6,6.27901333]
[1752860635359,12.22518291,178.66,178.6,0.68]
[1752860635672,0.65,178.66,178.62,11.57518291]
[1752860636053,12.22518291,178.66,178.61,11.57518291]
[1752860636351,47.08468397,178.67,178.6,0.68]
[1752860636352,101.8251829,178.65,178.6,11.57518291]
[1752860636549,107.422832,178.65,178.6,11.57518291]
[1752860636762,107.422832,178.65,178.6,12.25518291]
[1752860637770,29.00986688,178.64,178.59,13.15558291]
[1752860637951,90.24999999,178.63,178.59,13.15558291]
[1752860638150,90.24999999,178.62,178.59,11.57518291]
[1752860638478,90.24999999,178.62,178.58,11.57518291]
[1752860638665,89.59999999,178.61,178.57,0.68]
[1752860638865,90.24999999,178.61,178.57,11.57518291]
[1752860640069,28.35986688,178.59,178.53,7.0188]
[1752860640265,29.00986688,178.59,178.53,0.68]
[1752860640468,59.28986688,178.59,178.54,11.57518291]
[1752860640777,17.82491412,178.58,178.54,11.57518291]
[1752860641075,12.22518291,178.57,178.52,0.03]
[1752860641276,16.78468397,178.56,178.52,0.03]
[1752860641483,17.43468397,178.56,178.52,0.03]
[1752860641879,0.65,178.55,178.52,11.60518291]
[1752860642179,16.78468397,178.56,178.52,11.60518291]
[1752860642380,0.65,178.55,178.52,11.60518291]
[1752860642570,0.65,178.54,178.52,0.03]
[1752860642774,5.6012995,178.53,178.52,0.03]
[1752860643086,23.03598347,178.53,178.52,0.03]
[1752860643283,64.95116638,178.53,178.52,0.03]
[1752860644368,69.51118554,178.53,178.52,0.03]
[1752860645088,53.37598347,178.53,178.52,0.03]
[1752860645268,64.95116638,178.53,178.52,0.03]
[1752860645494,23.03598347,178.53,178.52,0.03]
[1752860645802,64.91116638,178.53,178.52,0.03]
[1752860646168,53.33598347,178.53,178.52,0.03]
[1752860646370,64.91116638,178.53,178.52,0.03]
[1752860646579,53.33598347,178.53,178.52,0.03]
[1752860646773,64.91116638,178.53,178.52,0.03]
[1752860647669,64.93116638,178.53,178.52,0.03]
[1752860647981,53.35598347,178.53,178.52,0.03]
[1752860648295,64.93116638,178.53,178.52,0.03]
[1752860649875,53.35598347,178.53,178.52,0.03]
[1752860650081,64.93116638,178.53,178.52,0.03]
[1752860650602,64.93116638,178.53,178.52,1e-08]
[1752860650798,71.37946638,178.53,178.52,1e-08]
[1752860652868,75.47800222,178.53,178.52,1e-08]
[1752860653578,75.47622095,178.53,178.52,1e-08]
[1752860653912,16.78468397,178.53,178.52,11.57518292]
[1752860654080,6.99465814,178.58,178.52,12.25518292]
[1752860654289,4.09642482,178.57,178.56,11.57518291]
[1752860654790,16.78468397,178.57,178.56,11.57518291]
[1752860654995,6.34465814,178.58,178.56,7.79312311]
[1752860655206,6.34465814,178.58,178.57,7.79312311]
[1752860655771,6.34465814,178.58,178.52,1e-08]
[1752860655971,6.34465814,178.58,178.55,7.11312311]
[1752860656185,6.84465814,178.58,178.55,7.11312311]
[1752860656605,6.84465814,178.58,178.56,7.11312311]
[1752860656984,6.84465814,178.58,178.57,11.59271563]
[1752860657184,6.34465814,178.58,178.57,11.59271563]
[1752860657807,6.34465814,178.58,178.56,6.27035606]
[1752860657989,6.34465814,178.58,178.57,0.67]
[1752860658715,6.34465814,178.58,178.57,12.26271563]
[1752860659216,6.34465814,178.58,178.57,17.86276043]
[1752860660885,6.34465814,178.58,178.57,0.67]
[1752860661120,6.34465814,178.58,178.57,12.26271563]
[1752860661413,6.34465814,178.58,178.57,17.86276043]
[1752860664502,26.0,178.62,178.57,17.86276043]
[1752860664687,4.13263456,178.61,178.57,6.2700448]
[1752860664888,4.13263456,178.6,178.58,0.67]
[1752860665119,26.0,178.62,178.58,0.67]
[1752860665334,4.13347152,178.61,178.58,0.67]
[1752860665498,4.13347152,178.6,178.58,0.67]
[1752860665827,4.13347152,178.59,178.58,0.67]
[1752860666034,4.13347152,178.59,178.58,12.26271563]
[1752860667516,4.13347152,178.59,178.58,11.59271563]
[1752860668321,4.13347152,178.59,178.58,12.26271563]
[1752860669726,4.13347152,178.59,178.58,0.67]
[1752860669920,4.13347152,178.59,178.58,11.59271563]
[1752860670126,4.13347152,178.59,178.56,5.60031428]
[1752860670295,0.72,178.61,178.58,11.59271563]
[1752860670502,26.0,178.62,178.6,11.59271563]
[1752860670814,4.14608208,178.61,178.57,6.26978641]
[1752860671010,4.14608208,178.6,178.58,0.67]
[1752860671213,4.14608208,178.59,178.57,39.80198641]
[1752860671439,5.59703244,178.67,178.57,39.80198641]
[1752860671643,4.14661317,178.66,178.57,69.88198641]
[1752860671934,4.14661317,178.65,178.64,11.59271563]
[1752860673233,9.74416984,178.65,178.6,0.67]
[1752860673425,9.74416984,178.65,178.57,34.2022]
[1752860673426,4.86661317,178.64,178.61,11.59271563]
[1752860673626,4.14661317,178.63,178.61,11.59271563]
[1752860673824,0.72,178.64,178.62,11.59271563]
[1752860674025,4.15083115,178.63,178.62,11.59271563]
[1752860674524,4.65083115,178.63,178.62,11.59271563]
[1752860674725,0.72,178.68,178.62,12.26271563]
[1752860674927,4.15291244,178.67,178.64,11.59271563]
[1752860675173,28.79998978,178.69,178.65,0.67]
[1752860675309,4.1515483,178.68,178.58,19.59895123]
[1752860675512,4.1515483,178.68,178.63,0.67]
[1752860675713,4.1515483,178.68,178.64,0.67]
[1752860676034,4.1515483,178.68,178.67,11.59271563]
[1752860676219,4.8715483,178.68,178.67,11.59271563]
[1752860676417,10.46814556,178.68,178.67,11.59271563]
[1752860676834,10.46814556,178.68,178.62,0.67]
[1752860677032,16.78468397,178.66,178.63,11.59271563]
[1752860677318,4.87485127,178.65,178.62,11.59271563]
[1752860677520,0.72,178.64,178.61,11.59271563]
[1752860677722,0.72,178.64,178.62,11.59271563]
[1752860677926,4.15485127,178.65,178.58,31.59973121]
[1752860677927,4.15485127,178.65,178.63,11.59271563]
[1752860678126,6.31659726,178.68,178.58,31.59973121]
[1752860678127,16.78468397,178.67,178.64,11.59271563]
[1752860678329,30.06,178.68,178.66,11.59271563]
[1752860678542,31.59663191,178.68,178.67,11.59271563]
[1752860678857,32.31663191,178.68,178.61,5.59872474]
[1752860679081,32.31663191,178.68,178.66,7.10667872]
[1752860679278,0.72,178.67,178.66,7.10667872]
[1752860679455,0.72,178.67,178.65,7.10667872]
[1752860679656,0.72,178.66,178.64,7.10667872]
[1752860680184,0.72,178.66,178.65,7.10667872]
[1752860680362,32.31663191,178.68,178.65,7.10667872]
[1752860680562,0.72,178.67,178.65,7.10667872]
[1752860680772,0.72,178.67,178.66,7.10667872]
[1752860681081,31.59663191,178.68,178.66,7.10667872]
[1752860681284,31.59663191,178.68,178.67,7.10667872]
[1752860681577,0.72,178.71,178.67,7.10667872]
[1752860681784,26.72,178.7,178.69,7.10667872]
[1752860681969,0.72,178.7,178.68,7.10667872]
[1752860682570,9.08505031,178.7,178.64,0.67]
[1752860682786,6.3162552,178.7,178.68,7.10667872]
[1752860683904,6.3162552,178.7,178.64,0.67]
[1752860683905,31.5962552,178.7,178.69,7.10667872]
[1752860684770,32.3162552,178.7,178.69,7.10667872]
[1752860684975,32.3162552,178.7,178.68,7.10667872]
[1752860686584,31.5962552,178.7,178.69,7.10667872]
[1752860686890,36.58438123,178.72,178.69,7.10667872]
[1752860687196,6.52438123,178.72,178.71,7.10667872]
[1752860687984,6.52438123,178.72,178.69,0.69]
[1752860687985,12.11978532,178.72,178.69,0.69]
[1752860688179,12.11978532,178.72,178.71,7.10667872]
[1752860688686,12.76978532,178.72,178.71,7.10667872]
[1752860689288,12.76978532,178.72,178.67,0.69]
[1752860689490,12.76978532,178.72,178.7,7.10667872]
[1752860690399,12.11978532,178.72,178.7,7.10667872]
[1752860690602,0.65,178.71,178.69,7.10667872]
[1752860690805,0.65,178.7,178.69,7.10667872]
[1752860691314,9.01507309,178.72,178.69,7.10667872]
[1752860691610,16.78468397,178.69,178.63,0.69]
[1752860691809,17.43468397,178.69,178.65,7.10667872]
[1752860691991,0.65,178.68,178.65,7.10667872]
[1752860692180,16.78468397,178.69,178.65,7.10667872]
[1752860692383,7.75667872,178.67,178.62,7.10667872]
[1752860692582,16.78468397,178.65,178.6,1.6538]
[1752860692912,0.65,178.64,178.6,7.10667872]
[1752860693089,0.65,178.64,178.56,8.76047872]
[1752860693090,23.89136269,178.63,178.58,7.10667872]
[1752860693413,5.59879066,178.61,178.58,7.10667872]
[1752860693788,5.59879066,178.61,178.59,7.10667872]
[1752860694198,5.59879066,178.61,178.56,2.3438]
[1752860694395,5.59879066,178.61,178.58,7.10667872]
[1752860695208,5.59879066,178.61,178.56,1.6538]
[1752860695512,0.65,178.6,178.52,1.59500001]
[1752860695709,7.75667872,178.6,178.52,1.59500001]
[1752860695916,7.75667872,178.59,178.52,1.59500001]
[1752860696124,7.10667872,178.59,178.54,7.10667872]
[1752860696416,36.28847721,178.62,178.58,7.10667872]
[1752860696607,16.78468397,178.61,178.59,7.10667872]
[1752860696808,36.28847721,178.62,178.6,7.10667872]
[1752860697012,35.63847721,178.62,178.6,7.10667872]
[1752860697203,5.59847721,178.62,178.6,7.10667872]
[1752860697409,5.59847721,178.62,178.56,7.10667872]
[1752860697410,26.65,178.64,178.61,7.10667872]
[1752860697597,46.82468397,178.65,178.63,7.10667872]
[1752860697786,1.5932,178.68,178.64,7.10667872]
[1752860697990,1.5932,178.68,178.66,7.10667872]
[1752860697991,16.78468397,178.67,178.66,7.10667872]
[1752860698192,9.76058371,178.67,178.66,7.10667872]
[1752860698611,5.5969105,178.67,178.66,7.10667872]
[1752860698992,31.59668551,178.68,178.66,11.5802768]
[1752860699310,5.59668551,178.68,178.67,11.5802768]
[1752860699507,23.03065487,178.7,178.67,11.5802768]
[1752860699720,26.0,178.68,178.63,0.2]
[1752860700420,0.65,178.67,178.6,7.45415543]
[1752860700719,0.65,178.67,178.66,11.5802768]
[1752860700916,0.65,178.67,178.6,7.45415543]
[1752860701219,0.65,178.67,178.66,11.5802768]
[1752860701797,6.2469105,178.67,178.66,11.5802768]
[1752860702002,6.2469105,178.67,178.65,11.5802768]
[1752860702319,0.65,178.66,178.65,11.5802768]
[1752860703400,5.5969105,178.67,178.65,11.5802768]
[1752860703707,26.0,178.7,178.66,11.5802768]
[1752860703894,4.17257301,178.69,178.64,11.5802768]
[1752860704209,4.82257301,178.69,178.68,11.5802768]
[1752860704399,4.17257301,178.69,178.68,11.5802768]
[1752860705918,5.59628343,178.7,178.68,11.5802768]
[1752860706103,5.59628343,178.7,178.69,11.5802768]
[1752860706308,9.76986454,178.7,178.69,11.5802768]
[1752860707210,4.17358111,178.7,178.69,11.5802768]
[1752860707520,5.6555618,178.72,178.69,11.5802768]
[1752860707722,22.44024577,178.72,178.71,11.5802768]
[1752860708022,4.23380169,178.72,178.71,11.5802768]
[1752860708823,0.06,178.72,178.71,11.5802768]
[1752860709416,0.06,178.72,178.67,0.2]
[1752860709624,0.71,178.72,178.7,11.5802768]
[1752860710122,0.06,178.72,178.71,11.5802768]
[1752860714011,0.06,178.72,178.68,5.79655493]
[1752860714210,0.06,178.72,178.71,11.5802768]
[1752860714932,0.06,178.72,178.71,11.7802768]
[1752860716308,0.06,178.72,178.71,17.37593456]
[1752860717407,0.06,178.72,178.71,5.79565776]
[1752860717609,0.06,178.72,178.71,17.37593456]
[1752860718115,0.06,178.72,178.71,11.7802768]
[1752860718940,0.06,178.72,178.69,5.79626862]
[1752860719227,0.06,178.72,178.71,11.5802768]
[1752860720808,0.06,178.72,178.68,26.0]
[1752860721007,0.06,178.72,178.71,11.5802768]
[1752860722404,0.06,178.72,178.65,36.2638]
[1752860722405,0.78,178.72,178.65,36.2638]
[1752860722713,0.78,178.72,178.68,11.5802768]
[1752860722923,7.8861717,178.72,178.67,7.1061717]
[1752860723117,7.1061717,178.7,178.63,1.5067]
[1752860723418,0.72,178.69,178.65,7.1061717]
[1752860723725,23.89085567,178.68,178.63,7.1061717]
[1752860723913,7.8261717,178.67,178.61,30.0]
[1752860724108,6.31722377,178.66,178.62,7.1061717]
[1752860724326,0.72,178.65,178.62,7.1061717]
[1752860724745,0.72,178.65,178.61,7.1061717]
[1752860724900,12.30946831,178.65,178.56,30.0]
[1752860725235,12.30946831,178.65,178.6,11.58946831]
[1752860725236,0.72,178.64,178.6,11.58946831]
[1752860725531,0.72,178.63,178.6,11.58946831]
[1752860725731,0.72,178.62,178.59,11.58946831]
[1752860726224,0.72,178.61,178.59,11.58946831]
[1752860726625,0.72,178.6,178.59,11.58946831]
[1752860727122,0.72,178.6,178.57,11.58946831]
[1752860727326,0.72,178.59,178.57,11.58946831]
[1752860727631,0.72,178.59,178.58,11.58946831]
[1752860728022,5.5981801,178.63,178.56,0.2]
[1752860728336,5.5981801,178.63,178.6,11.58946831]
[1752860728625,16.78468397,178.65,178.62,11.58946831]
[1752860728828,26.72,178.66,178.64,11.58946831]
[1752860729013,36.31664815,178.68,178.65,11.58946831]
[1752860729405,35.59664815,178.68,178.65,11.58946831]
[1752860729621,35.59664815,178.68,178.66,11.58946831]
[1752860729935,35.59664815,178.68,178.67,11.58946831]
[1752860729936,36.31664815,178.68,178.67,11.58946831]
[1752860730315,6.31664815,178.68,178.66,11.58946831]
[1752860730514,0.72,178.67,178.66,11.58946831]
[1752860731228,0.72,178.67,178.65,11.58946831]
[1752860731415,17.50468397,178.67,178.64,11.58946831]
[1752860731736,0.72,178.66,178.65,11.58946831]
[1752860732039,0.72,178.67,178.65,11.58946831]
[1752860732342,0.72,178.67,178.6,33.24651618]
[1752860732343,0.72,178.68,178.66,11.58946831]
[1752860732641,0.72,178.68,178.67,11.58946831]
[1752860733430,0.72,178.68,178.61,0.2]
[1752860733431,0.72,178.68,178.66,11.58946831]
[1752860733645,0.72,178.67,178.66,11.58946831]
[1752860734531,6.31712817,178.67,178.65,11.58946831]
[1752860734714,0.72,178.66,178.65,11.58946831]
[1752860735516,5.59712817,178.67,178.65,11.58946831]
[1752860735718,5.59712817,178.67,178.61,0.2]
[1752860735719,0.72,178.66,178.61,0.2]
[1752860735932,90.42,178.66,178.65,11.58946831]
[1752860736251,89.7,178.66,178.65,11.58946831]
[1752860737349,96.01722377,178.66,178.65,11.58946831]
[1752860737925,90.42,178.66,178.65,11.58946831]
[1752860738343,90.42,178.66,178.61,5.59874342]
[1752860738519,90.42,178.66,178.65,11.58946831]
[1752860738720,0.72,178.66,178.65,11.58946831]
[1752860741635,6.31694149,178.67,178.65,11.58946831]
[1752860741949,0.72,178.67,178.66,11.58946831]
[1752860743825,5.59680857,178.68,178.66,11.58946831]
[1752860744142,0.72,178.67,178.65,11.58946831]
[1752860744346,90.42,178.67,178.65,11.58946831]
[1752860744553,0.72,178.66,178.65,11.58946831]
[1752860745532,89.7,178.67,178.65,11.58946831]
[1752860745743,90.36,178.67,178.66,11.58946831]
[1752860746142,90.36,178.67,178.62,5.59837422]
[1752860746347,90.36,178.67,178.66,11.58946831]
[1752860746935,90.36,178.67,178.66,7.1067533]
[1752860748649,89.7,178.67,178.66,7.1067533]
[1752860749157,90.36,178.67,178.66,7.1067533]
[1752860750163,0.66,178.67,178.66,7.1067533]
[1752860751049,0.66,178.67,178.62,5.59839117]
[1752860751354,5.59665778,178.68,178.66,7.1067533]
[1752860751762,0.66,178.67,178.66,7.1067533]
[1752860751935,6.25702576,178.67,178.62,5.59839117]
[1752860752131,0.66,178.66,178.65,7.1067533]
[1752860753990,0.66,178.66,178.61,5.59879066]
[1752860754147,90.36,178.66,178.65,7.1067533]